[Event "Titled Tuesday Blitz January 10 Late 2023"]
[White "Skaric, Djuro"]
[Black "Gurevich, Dmitry"]
[WhiteFideId "934569"]
[BlackFideId "2000407"]
[WhiteElo "2334"]
[BlackElo "2393"]
[Result "0-1"]
[Round "08"]
[TimeControl "180+2"]
[Date "2023.01.10"]
[WhiteClock "0:00:58"]
[BlackClock "0:00:18"]

1. g3 {[%clk 0:00:00]}  d5 {[%clk 0:00:00]} 2. Bg2 {[%clk 0:03:00]}  Nf6 {[%clk 0:02:55]} 3. d3 {[%clk 0:03:00]}  c6 {[%clk 0:02:55]} 4. Nf3 {[%clk 0:03:00]}  Bf5 {[%clk 0:02:55]} 5. O-O {[%clk 0:03:00]}  h6 {[%clk 0:02:54]} 6. h3 {[%clk 0:03:00]}  e6 {[%clk 0:02:54]} 7. Nc3 {[%clk 0:03:01]}  Bh7 {[%clk 0:02:53]} 8. Nd4 {[%clk 0:03:01]}  Bc5 {[%clk 0:02:50]} 9. Nb3 {[%clk 0:03:01]}  Bb6 {[%clk 0:02:43]} 10. Kh2 {[%clk 0:02:59]}  O-O {[%clk 0:02:43]} 11. e4 {[%clk 0:02:59]}  dxe4 {[%clk 0:02:41]} 12. dxe4 {[%clk 0:02:59]}  Qxd1 {[%clk 0:02:37]} 13. Rxd1 {[%clk 0:02:58]}  Bxf2 {[%clk 0:02:35]} 14. Bf4 {[%clk 0:02:58]}  Bb6 {[%clk 0:02:33]} 15. Na4 {[%clk 0:02:54]}  Nbd7 {[%clk 0:02:29]} 16. e5 {[%clk 0:02:51]}  Nd5 {[%clk 0:02:26]} 17. c4 {[%clk 0:02:48]}  Nxf4 {[%clk 0:02:24]} 18. gxf4 {[%clk 0:02:47]}  Rfd8 {[%clk 0:02:23]} 19. c5 {[%clk 0:02:47]}  Bc7 {[%clk 0:02:14]} 20. Rd2 {[%clk 0:02:45]}  Nf8 {[%clk 0:02:07]} 21. Rd6 {[%clk 0:02:39]}  Ng6 {[%clk 0:02:06]} 22. Kg3 {[%clk 0:02:18]}  Ne7 {[%clk 0:02:04]} 23. Rad1 {[%clk 0:02:16]}  Nd5 {[%clk 0:01:58]} 24. Nd4 {[%clk 0:02:06]}  Bxd6 {[%clk 0:01:40]} 25. cxd6 {[%clk 0:01:58]}  Rac8 {[%clk 0:01:28]} 26. Bxd5 {[%clk 0:01:47]}  cxd5 {[%clk 0:01:12]} 27. Nc3 {[%clk 0:01:37]}  Rc4 {[%clk 0:01:10]} 28. Rd2 {[%clk 0:01:36]}  a6 {[%clk 0:01:05]} 29. Kf2 {[%clk 0:01:35]}  b5 {[%clk 0:01:05]} 30. a3 {[%clk 0:01:35]}  Kf8 {[%clk 0:01:05]} 31. Ke3 {[%clk 0:01:32]}  Ke8 {[%clk 0:01:02]} 32. Nce2 {[%clk 0:01:31]}  Kd7 {[%clk 0:01:02]} 33. b3 {[%clk 0:01:19]}  Rc5 {[%clk 0:01:00]} 34. h4 {[%clk 0:01:19]}  f6 {[%clk 0:00:56]} 35. Kf3 {[%clk 0:01:16]}  fxe5 {[%clk 0:00:55]} 36. fxe5 {[%clk 0:01:13]}  Rf8+ {[%clk 0:00:53]} 37. Ke3 {[%clk 0:01:11]}  Bf5 {[%clk 0:00:53]} 38. a4 {[%clk 0:01:11]}  Bg4 {[%clk 0:00:46]} 39. axb5 {[%clk 0:01:12]}  Bxe2 {[%clk 0:00:37]} 40. Nxe2 {[%clk 0:01:11]}  axb5 {[%clk 0:00:34]} 41. Nd4 {[%clk 0:01:10]}  Rc3+ {[%clk 0:00:33]} 42. Ke2 {[%clk 0:01:10]}  Rh3 {[%clk 0:00:33]} 43. Kd1 {[%clk 0:01:10]}  Rh1+ {[%clk 0:00:32]} 44. Kc2 {[%clk 0:01:09]}  Rf4 {[%clk 0:00:28]} 45. Nxb5 {[%clk 0:01:09]}  Rfxh4 {[%clk 0:00:27]} 46. Kb2 {[%clk 0:01:02]}  R1h2 {[%clk 0:00:27]} 47. Rxh2 {[%clk 0:01:01]}  Rxh2+ {[%clk 0:00:26]} 48. Kc3 {[%clk 0:01:00]}  Re2 {[%clk 0:00:26]} 49. Kb4 {[%clk 0:00:59]}  Rxe5 {[%clk 0:00:26]} 50. Kc5 {[%clk 0:00:59]}  Re3 {[%clk 0:00:25]} 51. b4 {[%clk 0:01:00]}  h5 {[%clk 0:00:21]} 52. Nd4 {[%clk 0:00:59]}  Re4 {[%clk 0:00:20]} 53. Nc6 {[%clk 0:00:59]}  Rc4+ {[%clk 0:00:19]} 54. Kb5 {[%clk 0:00:58]}  Rxc6 {[%clk 0:00:18]} 0-1


[Site "https://www.chess.com"]

[Event "Titled Tuesday Blitz January 10 Late 2023"]
[White "Urbina Perez, Juan Antonio"]
[Black "Tyagi, Kushan"]
[WhiteFideId "2217368"]
[BlackFideId "2040069"]
[WhiteElo "2266"]
[BlackElo "2060"]
[Result "0-1"]
[Round "08"]
[TimeControl "180+2"]
[Date "2023.01.10"]
[WhiteClock "0:00:04"]
[BlackClock "0:00:12"]

1. d4 {[%clk 0:00:00]}  Nf6 {[%clk 0:00:00]} 2. Nf3 {[%clk 0:02:54]}  e6 {[%clk 0:02:57]} 3. c4 {[%clk 0:02:54]}  Bb4+ {[%clk 0:02:55]} 4. Nbd2 {[%clk 0:02:54]}  d5 {[%clk 0:02:53]} 5. a3 {[%clk 0:02:51]}  Be7 {[%clk 0:02:50]} 6. g3 {[%clk 0:02:43]}  b6 {[%clk 0:02:49]} 7. Bg2 {[%clk 0:02:42]}  Bb7 {[%clk 0:02:38]} 8. O-O {[%clk 0:02:42]}  O-O {[%clk 0:02:38]} 9. Ne5 {[%clk 0:02:41]}  c5 {[%clk 0:02:38]} 10. dxc5 {[%clk 0:02:40]}  bxc5 {[%clk 0:02:37]} 11. b3 {[%clk 0:02:32]}  Nbd7 {[%clk 0:02:33]} 12. Ndf3 {[%clk 0:02:29]}  Nxe5 {[%clk 0:02:27]} 13. Nxe5 {[%clk 0:02:22]}  Qb6 {[%clk 0:02:20]} 14. Rb1 {[%clk 0:02:23]}  a5 {[%clk 0:02:20]} 15. Bg5 {[%clk 0:02:18]}  Rfd8 {[%clk 0:02:18]} 16. Qc2 {[%clk 0:02:16]}  d4 {[%clk 0:02:10]} 17. Bxb7 {[%clk 0:02:02]}  Qxb7 {[%clk 0:02:05]} 18. Nd3 {[%clk 0:01:59]}  Qc6 {[%clk 0:02:05]} 19. Bxf6 {[%clk 0:01:54]}  Bxf6 {[%clk 0:01:57]} 20. b4 {[%clk 0:01:48]}  axb4 {[%clk 0:01:56]} 21. axb4 {[%clk 0:01:49]}  cxb4 {[%clk 0:01:55]} 22. Rxb4 {[%clk 0:01:50]}  e5 {[%clk 0:01:53]} 23. Rfb1 {[%clk 0:01:51]}  Rac8 {[%clk 0:01:50]} 24. Rb5 {[%clk 0:01:45]}  e4 {[%clk 0:01:42]} 25. Nf4 {[%clk 0:01:23]}  d3 {[%clk 0:01:31]} 26. exd3 {[%clk 0:01:22]}  exd3 {[%clk 0:01:25]} 27. Nxd3 {[%clk 0:01:21]}  Qxc4 {[%clk 0:01:24]} 28. Qxc4 {[%clk 0:01:15]}  Rxc4 {[%clk 0:01:24]} 29. Nf4 {[%clk 0:01:15]}  h6 {[%clk 0:01:25]} 30. Nd5 {[%clk 0:01:16]}  Bd4 {[%clk 0:01:17]} 31. Rd1 {[%clk 0:01:10]}  Kh7 {[%clk 0:01:12]} 32. Kg2 {[%clk 0:00:58]}  Re8 {[%clk 0:01:05]} 33. Rd2 {[%clk 0:00:54]}  Re1 {[%clk 0:01:01]} 34. Rb7 {[%clk 0:00:49]}  Re5 {[%clk 0:00:48]} 35. Nf4 {[%clk 0:00:44]}  Rf5 {[%clk 0:00:41]} 36. Rd7 {[%clk 0:00:39]}  Bb6 {[%clk 0:00:36]} 37. Nd5 {[%clk 0:00:28]}  Ba5 {[%clk 0:00:29]} 38. Re2 {[%clk 0:00:24]}  Rc5 {[%clk 0:00:20]} 39. Ne3 {[%clk 0:00:19]}  Rfe5 {[%clk 0:00:20]} 40. Rxf7 {[%clk 0:00:18]}  Bc3 {[%clk 0:00:20]} 41. Ng4 {[%clk 0:00:18]}  Rxe2 {[%clk 0:00:18]} 42. Kf3 {[%clk 0:00:16]}  Re8 {[%clk 0:00:17]} 43. Rb7 {[%clk 0:00:14]}  Rf5+ {[%clk 0:00:16]} 44. Kg2 {[%clk 0:00:07]}  Bd4 {[%clk 0:00:16]} 45. f4 {[%clk 0:00:08]}  h5 {[%clk 0:00:16]} 46. Nf2 {[%clk 0:00:07]}  Re2 {[%clk 0:00:15]} 47. Kh3 {[%clk 0:00:03]}  Rxf2 {[%clk 0:00:13]} 48. g4 {[%clk 0:00:02]}  hxg4+ {[%clk 0:00:13]} 49. Kh4 {[%clk 0:00:03]}  Rxh2+ {[%clk 0:00:13]} 50. Kxg4 {[%clk 0:00:03]}  Rf6 {[%clk 0:00:12]} 51. Kg5 {[%clk 0:00:04]}  Rg2+ {[%clk 0:00:12]} 0-1


[Site "https://www.chess.com"]

[Event "Titled Tuesday Blitz January 10 Late 2023"]
[White "Belenkaya, Dina"]
[Black "Skurikhin, Dmitrij"]
[WhiteFideId "24142654"]
[BlackFideId "4161297"]
[WhiteElo "2267"]
[BlackElo "2297"]
[Result "0-1"]
[Round "08"]
[TimeControl "180+2"]
[Date "2023.01.10"]
[WhiteClock "0:00:04"]
[BlackClock "0:00:44"]

1. Nf3 {[%clk 0:00:00]}  d5 {[%clk 0:00:00]} 2. g3 {[%clk 0:03:00]}  Nf6 {[%clk 0:02:59]} 3. Bg2 {[%clk 0:02:59]}  c5 {[%clk 0:02:58]} 4. O-O {[%clk 0:02:58]}  Nc6 {[%clk 0:02:58]} 5. d3 {[%clk 0:02:59]}  e6 {[%clk 0:02:58]} 6. Nbd2 {[%clk 0:03:00]}  Be7 {[%clk 0:02:48]} 7. e4 {[%clk 0:02:59]}  b6 {[%clk 0:02:48]} 8. e5 {[%clk 0:02:53]}  Nd7 {[%clk 0:02:46]} 9. Re1 {[%clk 0:02:51]}  Qc7 {[%clk 0:02:45]} 10. Qe2 {[%clk 0:02:50]}  Bb7 {[%clk 0:02:45]} 11. Nf1 {[%clk 0:02:44]}  h6 {[%clk 0:02:45]} 12. h4 {[%clk 0:02:39]}  O-O-O {[%clk 0:02:41]} 13. h5 {[%clk 0:02:38]}  g6 {[%clk 0:02:40]} 14. hxg6 {[%clk 0:02:29]}  fxg6 {[%clk 0:02:37]} 15. Bh3 {[%clk 0:02:26]}  Nf8 {[%clk 0:02:37]} 16. d4 {[%clk 0:02:26]}  Nxd4 {[%clk 0:02:30]} 17. Nxd4 {[%clk 0:02:20]}  cxd4 {[%clk 0:02:27]} 18. Nh2 {[%clk 0:02:19]}  Qc4 {[%clk 0:02:27]} 19. Qd2 {[%clk 0:02:13]}  Bb4 {[%clk 0:02:10]} 20. c3 {[%clk 0:02:09]}  dxc3 {[%clk 0:02:07]} 21. Qd1 {[%clk 0:02:09]}  cxb2 {[%clk 0:02:06]} 22. Bxb2 {[%clk 0:02:00]}  Bxe1 {[%clk 0:01:52]} 23. Rc1 {[%clk 0:01:59]}  Bb4 {[%clk 0:01:52]} 24. Rxc4+ {[%clk 0:01:59]}  dxc4 {[%clk 0:01:46]} 25. Qc2 {[%clk 0:01:54]}  b5 {[%clk 0:01:46]} 26. Nf1 {[%clk 0:01:54]}  Kb8 {[%clk 0:01:42]} 27. Bc3 {[%clk 0:01:52]}  Bc5 {[%clk 0:01:38]} 28. Ba5 {[%clk 0:01:46]}  Rd3 {[%clk 0:01:36]} 29. Qb1 {[%clk 0:01:46]}  a6 {[%clk 0:01:34]} 30. a3 {[%clk 0:01:38]}  Nd7 {[%clk 0:01:32]} 31. Bxe6 {[%clk 0:01:38]}  Nxe5 {[%clk 0:01:22]} 32. Ne3 {[%clk 0:01:36]}  Nf3+ {[%clk 0:01:21]} 33. Kf1 {[%clk 0:01:05]}  Re8 {[%clk 0:01:17]} 34. Bg4 {[%clk 0:01:05]}  Bxe3 {[%clk 0:00:48]} 35. Bxf3 {[%clk 0:00:07]}  Bxf3 {[%clk 0:00:45]} 36. fxe3 {[%clk 0:00:06]}  Rd1+ {[%clk 0:00:44]} 37. Qxd1 {[%clk 0:00:06]}  Bxd1 {[%clk 0:00:44]} 38. Kf2 {[%clk 0:00:05]}  Bg4 {[%clk 0:00:45]} 39. Bc3 {[%clk 0:00:05]}  Re4 {[%clk 0:00:44]} 40. Bb4 {[%clk 0:00:04]}  Kb7 {[%clk 0:00:44]} 0-1


[Site "https://www.chess.com"]

[Event "Titled Tuesday Blitz January 10 Late 2023"]
[White "Arencibia Monduy, Antonio"]
[Black "Stanisz, Patryk"]
[WhiteFideId "3507939"]
[BlackFideId "1123106"]
[WhiteElo "2122"]
[BlackElo "2161"]
[Result "1-0"]
[Round "08"]
[TimeControl "180+2"]
[Date "2023.01.10"]
[WhiteClock "0:00:51"]
[BlackClock "0:00:05"]

1. e4 {[%clk 0:00:00]}  c5 {[%clk 0:00:00]} 2. Nf3 {[%clk 0:03:00]}  Nc6 {[%clk 0:02:59]} 3. d4 {[%clk 0:03:00]}  cxd4 {[%clk 0:02:59]} 4. Nxd4 {[%clk 0:03:00]}  Nf6 {[%clk 0:03:00]} 5. Nc3 {[%clk 0:03:01]}  e5 {[%clk 0:03:00]} 6. Ndb5 {[%clk 0:03:01]}  d6 {[%clk 0:03:00]} 7. Bg5 {[%clk 0:03:02]}  a6 {[%clk 0:03:00]} 8. Na3 {[%clk 0:03:02]}  b5 {[%clk 0:03:00]} 9. Nd5 {[%clk 0:03:02]}  Be7 {[%clk 0:03:01]} 10. Bxf6 {[%clk 0:03:02]}  Bxf6 {[%clk 0:03:01]} 11. c3 {[%clk 0:03:02]}  O-O {[%clk 0:03:02]} 12. Be2 {[%clk 0:03:03]}  Bg5 {[%clk 0:03:02]} 13. O-O {[%clk 0:03:03]}  Rb8 {[%clk 0:03:02]} 14. Nc2 {[%clk 0:03:03]}  a5 {[%clk 0:03:01]} 15. Bg4 {[%clk 0:03:04]}  b4 {[%clk 0:02:58]} 16. cxb4 {[%clk 0:03:03]}  axb4 {[%clk 0:02:52]} 17. b3 {[%clk 0:02:53]}  Be6 {[%clk 0:02:51]} 18. Nce3 {[%clk 0:02:45]}  Nd4 {[%clk 0:02:51]} 19. h3 {[%clk 0:02:44]}  Qd7 {[%clk 0:02:51]} 20. Qd3 {[%clk 0:02:16]}  Rfc8 {[%clk 0:02:48]} 21. Rfc1 {[%clk 0:02:16]}  Rxc1+ {[%clk 0:02:28]} 22. Rxc1 {[%clk 0:02:07]}  Bxg4 {[%clk 0:02:21]} 23. hxg4 {[%clk 0:02:06]}  Rc8 {[%clk 0:02:18]} 24. Rxc8+ {[%clk 0:02:05]}  Qxc8 {[%clk 0:02:09]} 25. Qc4 {[%clk 0:01:45]}  Qxc4 {[%clk 0:02:10]} 26. Nxc4 {[%clk 0:01:45]}  Ne2+ {[%clk 0:02:03]} 27. Kf1 {[%clk 0:01:42]}  Nc3 {[%clk 0:01:56]} 28. Nxb4 {[%clk 0:01:42]}  Nxe4 {[%clk 0:01:57]} 29. f3 {[%clk 0:01:35]}  Nd2+ {[%clk 0:01:48]} 30. Ke2 {[%clk 0:01:33]}  Nxc4 {[%clk 0:01:40]} 31. bxc4 {[%clk 0:01:26]}  Kf8 {[%clk 0:01:36]} 32. Kd3 {[%clk 0:01:27]}  Ke7 {[%clk 0:01:34]} 33. Ke4 {[%clk 0:01:16]}  Ke6 {[%clk 0:01:31]} 34. a4 {[%clk 0:01:16]}  Bd2 {[%clk 0:01:22]} 35. Nc6 {[%clk 0:01:06]}  g6 {[%clk 0:01:19]} 36. a5 {[%clk 0:01:01]}  f5+ {[%clk 0:01:13]} 37. gxf5+ {[%clk 0:00:59]}  gxf5+ {[%clk 0:01:13]} 38. Kd3 {[%clk 0:00:59]}  Kd7 {[%clk 0:01:14]} 39. Nxe5+ {[%clk 0:01:00]}  dxe5 {[%clk 0:01:15]} 40. Kxd2 {[%clk 0:00:56]}  Kc6 {[%clk 0:01:15]} 41. g4 {[%clk 0:00:57]}  f4 {[%clk 0:01:13]} 42. Kd3 {[%clk 0:00:51]}  Kc5 {[%clk 0:00:05]} 1-0


[Site "https://www.chess.com"]

[Event "Titled Tuesday Blitz January 10 Late 2023"]
[White "Floresvillar Gonzalez, Luis Migu"]
[Black "Estrada Nieto, Julian"]
[WhiteFideId "5100542"]
[BlackFideId "5101018"]
[WhiteElo "2043"]
[BlackElo "2215"]
[Result "0-1"]
[Round "08"]
[TimeControl "180+2"]
[Date "2023.01.10"]
[WhiteClock "0:00:06"]
[BlackClock "0:00:25"]

1. d4 {[%clk 0:00:00]}  d5 {[%clk 0:00:00]} 2. c3 {[%clk 0:02:58]}  Nf6 {[%clk 0:02:59]} 3. Bg5 {[%clk 0:02:46]}  Ne4 {[%clk 0:02:57]} 4. h4 {[%clk 0:02:45]}  c6 {[%clk 0:02:56]} 5. Nd2 {[%clk 0:02:42]}  Bf5 {[%clk 0:02:55]} 6. Nxe4 {[%clk 0:02:39]}  Bxe4 {[%clk 0:02:51]} 7. Qb3 {[%clk 0:02:36]}  Qb6 {[%clk 0:02:51]} 8. Qxb6 {[%clk 0:02:36]}  axb6 {[%clk 0:02:50]} 9. a3 {[%clk 0:02:36]}  h6 {[%clk 0:02:50]} 10. Bf4 {[%clk 0:02:34]}  Nd7 {[%clk 0:02:42]} 11. Nf3 {[%clk 0:02:33]}  Bxf3 {[%clk 0:02:42]} 12. exf3 {[%clk 0:02:20]}  b5 {[%clk 0:02:35]} 13. Bd3 {[%clk 0:02:17]}  e6 {[%clk 0:02:33]} 14. O-O {[%clk 0:02:14]}  Be7 {[%clk 0:02:33]} 15. g3 {[%clk 0:02:14]}  O-O {[%clk 0:02:32]} 16. Rfe1 {[%clk 0:02:12]}  Nb6 {[%clk 0:02:30]} 17. Rad1 {[%clk 0:02:12]}  Nc4 {[%clk 0:02:28]} 18. Bxc4 {[%clk 0:02:03]}  bxc4 {[%clk 0:02:26]} 19. Bc1 {[%clk 0:02:01]}  Bd6 {[%clk 0:02:26]} 20. h5 {[%clk 0:01:55]}  Rfe8 {[%clk 0:02:20]} 21. f4 {[%clk 0:01:55]}  f6 {[%clk 0:02:19]} 22. Re2 {[%clk 0:01:55]}  Kf7 {[%clk 0:02:12]} 23. Rde1 {[%clk 0:01:49]}  Re7 {[%clk 0:02:12]} 24. Kg2 {[%clk 0:01:48]}  Rae8 {[%clk 0:02:11]} 25. f3 {[%clk 0:01:46]}  b5 {[%clk 0:02:11]} 26. g4 {[%clk 0:01:45]}  e5 {[%clk 0:02:06]} 27. fxe5 {[%clk 0:01:43]}  fxe5 {[%clk 0:02:05]} 28. dxe5 {[%clk 0:01:43]}  Rxe5 {[%clk 0:02:05]} 29. Rxe5 {[%clk 0:01:43]}  Rxe5 {[%clk 0:02:05]} 30. Rxe5 {[%clk 0:01:42]}  Bxe5 {[%clk 0:02:04]} 31. f4 {[%clk 0:01:39]}  Bf6 {[%clk 0:02:05]} 32. Kf3 {[%clk 0:01:30]}  d4 {[%clk 0:02:04]} 33. cxd4 {[%clk 0:01:30]}  Bxd4 {[%clk 0:02:01]} 34. g5 {[%clk 0:01:26]}  Ke6 {[%clk 0:02:01]} 35. Ke4 {[%clk 0:01:26]}  c5 {[%clk 0:01:57]} 36. f5+ {[%clk 0:01:26]}  Kd6 {[%clk 0:01:40]} 37. gxh6 {[%clk 0:01:19]}  gxh6 {[%clk 0:01:27]} 38. Bf4+ {[%clk 0:01:17]}  Ke7 {[%clk 0:01:27]} 39. Bc1 {[%clk 0:01:05]}  Kf6 {[%clk 0:01:25]} 40. Kf4 {[%clk 0:01:02]}  b4 {[%clk 0:01:24]} 41. a4 {[%clk 0:00:50]}  c3 {[%clk 0:01:15]} 42. bxc3 {[%clk 0:00:37]}  Bxc3 {[%clk 0:01:05]} 43. a5 {[%clk 0:00:35]}  c4 {[%clk 0:01:00]} 44. Ke4 {[%clk 0:00:35]}  Be5 {[%clk 0:00:56]} 45. a6 {[%clk 0:00:27]}  Bb8 {[%clk 0:00:50]} 46. Bxh6 {[%clk 0:00:19]}  b3 {[%clk 0:00:49]} 47. Bf4 {[%clk 0:00:16]}  Bxf4 {[%clk 0:00:42]} 48. a7 {[%clk 0:00:13]}  b2 {[%clk 0:00:38]} 49. a8=Q {[%clk 0:00:12]}  b1=Q+ {[%clk 0:00:38]} 50. Kxf4 {[%clk 0:00:11]}  Qf1+ {[%clk 0:00:38]} 51. Ke3 {[%clk 0:00:11]}  Qd3+ {[%clk 0:00:38]} 52. Kf2 {[%clk 0:00:11]}  Qxf5+ {[%clk 0:00:37]} 53. Ke3 {[%clk 0:00:11]}  Qe5+ {[%clk 0:00:37]} 54. Kd2 {[%clk 0:00:11]}  Qd4+ {[%clk 0:00:33]} 55. Kc2 {[%clk 0:00:10]}  Qd3+ {[%clk 0:00:32]} 56. Kc1 {[%clk 0:00:07]}  Qc3+ {[%clk 0:00:32]} 57. Kb1 {[%clk 0:00:07]}  Qb3+ {[%clk 0:00:29]} 58. Kc1 {[%clk 0:00:06]}  Qe3+ {[%clk 0:00:29]} 59. Kc2 {[%clk 0:00:07]}  Qe2+ {[%clk 0:00:28]} 60. Kc3 {[%clk 0:00:06]}  Qd3+ {[%clk 0:00:27]} 61. Kb2 {[%clk 0:00:06]}  c3+ {[%clk 0:00:27]} 62. Ka2 {[%clk 0:00:07]}  Qc2+ {[%clk 0:00:27]} 63. Ka3 {[%clk 0:00:06]}  Qb2+ {[%clk 0:00:25]} 0-1


[Site "https://www.chess.com"]

[Event "Titled Tuesday Blitz January 10 Late 2023"]
[White "Marcolino, Daniel Mattos"]
[Black "Le Goff, Ronan"]
[WhiteFideId "2106841"]
[BlackFideId "612073"]
[WhiteElo "2006"]
[BlackElo "2320"]
[Result "0-1"]
[Round "08"]
[TimeControl "180+2"]
[Date "2023.01.10"]
[WhiteClock "0:02:13"]
[BlackClock "0:02:23"]

1. d4 {[%clk 0:00:00]}  Nf6 {[%clk 0:00:00]} 2. Nf3 {[%clk 0:03:00]}  e6 {[%clk 0:02:54]} 3. g3 {[%clk 0:03:01]}  d5 {[%clk 0:02:55]} 4. Bg2 {[%clk 0:03:01]}  c5 {[%clk 0:02:56]} 5. O-O {[%clk 0:03:01]}  Nc6 {[%clk 0:02:53]} 6. c4 {[%clk 0:03:01]}  dxc4 {[%clk 0:02:53]} 7. Ne5 {[%clk 0:03:01]}  Bd7 {[%clk 0:02:50]} 8. Nxc4 {[%clk 0:03:01]}  cxd4 {[%clk 0:02:47]} 9. Bg5 {[%clk 0:02:53]}  Bc5 {[%clk 0:02:46]} 10. Nbd2 {[%clk 0:02:38]}  h6 {[%clk 0:02:42]} 11. Bxf6 {[%clk 0:02:37]}  Qxf6 {[%clk 0:02:42]} 12. Ne4 {[%clk 0:02:34]}  Qe7 {[%clk 0:02:41]} 13. Nxc5 {[%clk 0:02:35]}  Qxc5 {[%clk 0:02:41]} 14. Rc1 {[%clk 0:02:34]}  O-O {[%clk 0:02:41]} 15. a3 {[%clk 0:02:35]}  Rfd8 {[%clk 0:02:37]} 16. b4 {[%clk 0:02:25]}  Qe7 {[%clk 0:02:28]} 17. Qb3 {[%clk 0:02:24]}  Rac8 {[%clk 0:02:28]} 18. Rfd1 {[%clk 0:02:24]}  e5 {[%clk 0:02:26]} 19. e3 {[%clk 0:02:20]}  Be6 {[%clk 0:02:25]} 20. Qd3 {[%clk 0:02:13]}  dxe3 {[%clk 0:02:23]} 0-1


[Site "https://www.chess.com"]

[Event "Titled Tuesday Blitz January 10 Late 2023"]
[White "Santos Flores, Alberto"]
[Black "Gerbelli Neto, Eduardo"]
[WhiteFideId "3601234"]
[BlackFideId "2103281"]
[WhiteElo "2164"]
[BlackElo "2114"]
[Result "0-1"]
[Round "08"]
[TimeControl "180+2"]
[Date "2023.01.10"]
[WhiteClock "0:00:45"]
[BlackClock "0:00:54"]

1. d4 {[%clk 0:00:00]}  d5 {[%clk 0:00:00]} 2. Nf3 {[%clk 0:03:00]}  Nf6 {[%clk 0:02:59]} 3. c4 {[%clk 0:03:00]}  c6 {[%clk 0:02:59]} 4. cxd5 {[%clk 0:03:00]}  cxd5 {[%clk 0:02:59]} 5. Nc3 {[%clk 0:02:58]}  Nc6 {[%clk 0:02:59]} 6. Bf4 {[%clk 0:02:57]}  Bf5 {[%clk 0:03:00]} 7. e3 {[%clk 0:02:57]}  e6 {[%clk 0:02:59]} 8. Qb3 {[%clk 0:02:56]}  Bb4 {[%clk 0:02:59]} 9. Bb5 {[%clk 0:02:53]}  Bxc3+ {[%clk 0:02:51]} 10. Qxc3 {[%clk 0:02:30]}  O-O {[%clk 0:02:51]} 11. Bxc6 {[%clk 0:02:30]}  bxc6 {[%clk 0:02:52]} 12. Qxc6 {[%clk 0:02:26]}  Rc8 {[%clk 0:02:40]} 13. Qa4 {[%clk 0:02:20]}  Qb6 {[%clk 0:02:34]} 14. O-O {[%clk 0:02:19]}  Qxb2 {[%clk 0:02:31]} 15. Ne5 {[%clk 0:02:07]}  Bc2 {[%clk 0:02:27]} 16. Qxa7 {[%clk 0:01:56]}  Ra8 {[%clk 0:02:16]} 17. Qc7 {[%clk 0:01:54]}  Rxa2 {[%clk 0:02:15]} 18. Rxa2 {[%clk 0:01:40]}  Qxa2 {[%clk 0:02:12]} 19. Rc1 {[%clk 0:01:40]}  Bf5 {[%clk 0:02:13]} 20. h3 {[%clk 0:01:40]}  h5 {[%clk 0:02:06]} 21. f3 {[%clk 0:01:36]}  Qe2 {[%clk 0:02:05]} 22. Qc3 {[%clk 0:01:28]}  Ra8 {[%clk 0:01:01]} 23. Qc2 {[%clk 0:00:45]}  Bxc2 {[%clk 0:00:54]} 0-1


[Site "https://www.chess.com"]

[Event "Titled Tuesday Blitz January 10 Late 2023"]
[White "Rose, Felix"]
[Black "Seletsky, Grigory"]
[WhiteFideId "5105722"]
[BlackFideId "14112191"]
[WhiteElo "2091"]
[BlackElo "2259"]
[Result "0-1"]
[Round "08"]
[TimeControl "180+2"]
[Date "2023.01.10"]
[WhiteClock "0:00:01"]
[BlackClock "0:01:00"]

1. d4 {[%clk 0:00:00]}  g6 {[%clk 0:00:00]} 2. e4 {[%clk 0:03:00]}  Bg7 {[%clk 0:02:59]} 3. Nf3 {[%clk 0:03:00]}  c6 {[%clk 0:03:00]} 4. h3 {[%clk 0:03:00]}  d5 {[%clk 0:03:00]} 5. e5 {[%clk 0:03:00]}  Nh6 {[%clk 0:02:59]} 6. Be2 {[%clk 0:03:00]}  f6 {[%clk 0:02:59]} 7. Bf4 {[%clk 0:02:52]}  Nf7 {[%clk 0:02:58]} 8. Qd2 {[%clk 0:02:49]}  O-O {[%clk 0:02:57]} 9. O-O {[%clk 0:02:48]}  fxe5 {[%clk 0:02:56]} 10. dxe5 {[%clk 0:02:47]}  e6 {[%clk 0:02:53]} 11. Re1 {[%clk 0:02:47]}  c5 {[%clk 0:02:54]} 12. c3 {[%clk 0:02:47]}  Nc6 {[%clk 0:02:54]} 13. Na3 {[%clk 0:02:44]}  a6 {[%clk 0:02:55]} 14. Bf1 {[%clk 0:02:41]}  b5 {[%clk 0:02:54]} 15. Nc2 {[%clk 0:02:40]}  Bb7 {[%clk 0:02:54]} 16. Rad1 {[%clk 0:02:40]}  Qe7 {[%clk 0:02:54]} 17. Re2 {[%clk 0:02:30]}  a5 {[%clk 0:02:53]} 18. Nce1 {[%clk 0:02:29]}  b4 {[%clk 0:02:51]} 19. Nd3 {[%clk 0:02:29]}  Ba6 {[%clk 0:02:50]} 20. Ree1 {[%clk 0:02:27]}  bxc3 {[%clk 0:02:45]} 21. Qxc3 {[%clk 0:02:27]}  Bxd3 {[%clk 0:02:43]} 22. Bxd3 {[%clk 0:02:25]}  c4 {[%clk 0:02:42]} 23. Bc2 {[%clk 0:02:16]}  Qb4 {[%clk 0:02:43]} 24. Bd2 {[%clk 0:02:12]}  Rfb8 {[%clk 0:02:34]} 25. Rb1 {[%clk 0:01:55]}  Bh6 {[%clk 0:02:32]} 26. Bxh6 {[%clk 0:01:50]}  Nxh6 {[%clk 0:02:05]} 27. Ng5 {[%clk 0:01:44]}  Qxc3 {[%clk 0:02:05]} 28. bxc3 {[%clk 0:01:41]}  Nd8 {[%clk 0:02:00]} 29. Ba4 {[%clk 0:01:41]}  Nhf7 {[%clk 0:01:58]} 30. Nxf7 {[%clk 0:01:34]}  Kxf7 {[%clk 0:01:57]} 31. f4 {[%clk 0:01:30]}  Ke7 {[%clk 0:01:55]} 32. Kf2 {[%clk 0:01:31]}  Nf7 {[%clk 0:01:51]} 33. Ke3 {[%clk 0:01:31]}  g5 {[%clk 0:01:48]} 34. g3 {[%clk 0:01:31]}  gxf4+ {[%clk 0:01:45]} 35. gxf4 {[%clk 0:01:29]}  Nh6 {[%clk 0:01:45]} 36. Rg1 {[%clk 0:01:30]}  Nf5+ {[%clk 0:01:45]} 37. Kf3 {[%clk 0:01:26]}  Kf7 {[%clk 0:01:42]} 38. Bc6 {[%clk 0:01:26]}  Rxb1 {[%clk 0:01:29]} 39. Rxb1 {[%clk 0:01:23]}  Ra6 {[%clk 0:01:26]} 40. Rb7+ {[%clk 0:01:23]}  Kg6 {[%clk 0:01:24]} 41. Be8+ {[%clk 0:01:21]}  Kh6 {[%clk 0:01:21]} 42. Bf7 {[%clk 0:01:16]}  a4 {[%clk 0:01:21]} 43. Bg8 {[%clk 0:00:59]}  Ng7 {[%clk 0:01:19]} 44. a3 {[%clk 0:00:58]}  Kg6 {[%clk 0:01:17]} 45. Bf7+ {[%clk 0:00:56]}  Kh6 {[%clk 0:01:16]} 46. Bg8 {[%clk 0:00:51]}  Rc6 {[%clk 0:01:15]} 47. Rb4 {[%clk 0:00:43]}  d4 {[%clk 0:01:14]} 48. Ke2 {[%clk 0:00:37]}  dxc3 {[%clk 0:01:12]} 49. Rxa4 {[%clk 0:00:30]}  Nf5 {[%clk 0:01:07]} 50. Kd1 {[%clk 0:00:28]}  Nd4 {[%clk 0:01:07]} 51. Ra7 {[%clk 0:00:23]}  c2+ {[%clk 0:01:06]} 52. Kc1 {[%clk 0:00:21]}  Rb6 {[%clk 0:01:05]} 53. Rxh7+ {[%clk 0:00:21]}  Kg6 {[%clk 0:01:04]} 54. Rd7 {[%clk 0:00:15]}  Rb1+ {[%clk 0:01:03]} 55. Kd2 {[%clk 0:00:01]}  c1=Q# {[%clk 0:01:00]} 0-1


[Site "https://www.chess.com"]